[Event "Klubbmästerskap 2025 Torsdagar"]
[Site "Linköping, Sweden"]
[Date "2025.01.23"]
[Round "2.1"]
[White "Pettersson, Börje"]
[Black "Ståhlberg, Adam"]
[Result "1-0"]
[TimeControl "90 min + 30 sec/move"]
[WhiteElo "1906"]
[BlackElo "1944"]

1. e4 {[%clk 01:30:51]} {[%emt 00:00:07]} c6 {[%clk 01:30:16]} {[%emt
00:00:45]} 2. d4 {[%clk 01:30:48]} {[%emt 00:00:31]} d5 {[%clk 01:30:18]}
{[%emt 00:00:29]} 3. Nc3 {[%clk 01:30:51]} {[%emt 00:00:27]} dxe4 {[%clk
01:30:43]} {[%emt 00:00:06]} 4. Nxe4 {[%clk 01:31:08]} {[%emt 00:00:12]} Nf6
{[%clk 01:31:06]} {[%emt 00:00:08]} 5. Nxf6+ {[%clk 01:29:38]} {[%emt
00:02:00]} exf6 {[%clk 01:31:26]} {[%emt 00:00:11]} 6. c3 {[%clk 01:29:31]}
{[%emt 00:00:34]} Bd6 {[%clk 01:31:34]} {[%emt 00:00:24]} 7. Bd3 {[%clk
01:29:39]} {[%emt 00:00:21]} O-O {[%clk 01:31:14]} {[%emt 00:00:52]} 8. Ne2
{[%clk 01:28:39]} {[%emt 00:01:29]} Re8 {[%clk 01:31:01]} {[%emt 00:00:44]} 9.
O-O {[%clk 01:28:02]} {[%emt 00:01:06]} Nd7 {[%clk 01:24:52]} {[%emt 00:06:39]}
10. Ng3 {[%clk 01:21:21]} {[%emt 00:07:10]} Nf8 {[%clk 01:21:01]} {[%emt
00:04:22]} 11. Bd2 {[%clk 01:14:15]} {[%emt 00:07:35]} Be6 {[%clk 01:15:26]}
{[%emt 00:06:05]} 12. Qc2 {[%clk 01:05:20]} {[%emt 00:09:25]} Bc7 {[%clk
01:00:40]} {[%emt 00:15:16]} 13. Nf5 {[%clk 00:56:28]} {[%emt 00:09:22]} Ng6
{[%clk 00:49:20]} {[%emt 00:11:51]} 14. g3 {[%clk 00:52:08]} {[%emt 00:04:50]}
Qd7 {[%clk 00:45:15]} {[%emt 00:04:35]} 15. Rad1 {[%clk 00:41:21]} {[%emt
00:11:15]} Rad8 {[%clk 00:42:49]} {[%emt 00:02:58]} 16. Bc1 {[%clk 00:39:52]}
{[%emt 00:01:59]} Qd5 {[%clk 00:29:01]} {[%emt 00:14:18]} 17. b3 {[%clk
00:26:04]} {[%emt 00:14:18]} Qf3 {[%clk 00:18:07]} {[%emt 00:11:25]} 18. Ne3
{[%clk 00:25:35]} {[%emt 00:00:58]} Nf4 {[%clk 00:11:42]} {[%emt 00:06:55]} 19.
gxf4 {[%clk 00:24:49]} {[%emt 00:01:15]} Bxf4 {[%clk 00:11:22]} {[%emt
00:00:50]} 20. Be4 {[%clk 00:21:04]} {[%emt 00:04:14]} Qh5 {[%clk 00:09:09]}
{[%emt 00:02:44]} 21. f3 {[%clk 00:19:58]} {[%emt 00:01:36]} f5 {[%clk
00:06:43]} {[%emt 00:02:56]} 22. Nxf5 {[%clk 00:15:35]} {[%emt 00:04:52]} Bxc1
{[%clk 00:04:02]} {[%emt 00:03:12]} 23. Rxc1 {[%clk 00:15:31]} {[%emt
00:00:33]} Bxf5 {[%clk 00:04:16]} {[%emt 00:00:17]} 24. Bxf5 {[%clk 00:15:48]}
{[%emt 00:00:13]} Re3 {[%clk 00:04:06]} {[%emt 00:00:40]} 25. Bg4 {[%clk
00:11:58]} {[%emt 00:04:20]} Qh6 {[%clk 00:03:33]} {[%emt 00:01:03]} 26. Rce1
{[%clk 00:11:29]} {[%emt 00:00:58]} g6 {[%clk 00:03:22]} {[%emt 00:00:42]} 27.
Kg2 {[%clk 00:06:55]} {[%emt 00:05:04]} Rde8 {[%clk 00:03:16]} {[%emt
00:00:37]} 28. Rxe3 {[%clk 00:06:00]} {[%emt 00:01:24]} Qxe3 {[%clk 00:03:25]}
{[%emt 00:00:21]} 29. Rf2 {[%clk 00:06:00]} {[%emt 00:00:30]} f5 {[%clk
00:02:35]} {[%emt 00:01:21]} 30. Bh3 {[%clk 00:05:40]} {[%emt 00:00:50]} Qg5+
{[%clk 00:02:31]} {[%emt 00:00:33]} 31. Kf1 {[%clk 00:05:36]} {[%emt 00:00:34]}
Qe3 {[%clk 00:01:46]} {[%emt 00:01:15]} 32. Qd2 {[%clk 00:05:31]} {[%emt
00:00:35]} Qxd2 {[%clk 00:01:51]} {[%emt 00:00:25]} 33. Rxd2 {[%clk 00:05:57]}
{[%emt 00:00:04]} Re3 {[%clk 00:02:16]} {[%emt 00:00:05]} 34. Bg2 {[%clk
00:05:08]} {[%emt 00:01:19]} Rxc3 {[%clk 00:02:39]} {[%emt 00:00:08]} 35. f4
{[%clk 00:05:28]} {[%emt 00:00:09]} b6 {[%clk 00:01:17]} {[%emt 00:01:53]} 36.
Ke2 {[%clk 00:05:07]} {[%emt 00:00:50]} Kf8 {[%clk 00:01:32]} {[%emt 00:00:17]}
37. d5 {[%clk 00:04:45]} {[%emt 00:00:51]} cxd5 {[%clk 00:01:52]} {[%emt
00:00:10]} 38. Rxd5 {[%clk 00:05:04]} {[%emt 00:00:10]} Ke7 {[%clk 00:01:44]}
{[%emt 00:00:39]} 39. Kd2 {[%clk 00:03:37]} {[%emt 00:01:55]} Rc7 {[%clk
00:02:06]} {[%emt 00:00:09]} 40. a4 {[%clk 00:03:41]} {[%emt 00:00:27]} Ke6
{[%clk 00:01:43]} {[%emt 00:00:53]} 41. Re5+ {[%clk 00:03:29]} {[%emt
00:00:41]} Kd6 {[%clk 00:01:49]} {[%emt 00:00:25]} 42. Bd5 {[%clk 00:03:23]}
{[%emt 00:00:36]} h6 {[%clk 00:01:13]} {[%emt 00:01:07]} 43. Bc4 {[%clk
00:03:43]} {[%emt 00:00:09]} Rg7 {[%clk 00:01:33]} {[%emt 00:00:10]} 44. Re6+
{[%clk 00:03:14]} {[%emt 00:00:59]} Kc7 {[%clk 00:01:41]} {[%emt 00:00:21]} 45.
Rf6 {[%clk 00:03:25]} {[%emt 00:00:19]} Rd7+ {[%clk 00:01:14]} {[%emt
00:00:58]} 46. Kc3 {[%clk 00:03:52]} {[%emt 00:00:03]} Rd6 {[%clk 00:01:26]}
{[%emt 00:00:18]} 47. Rxd6 {[%clk 00:04:02]} {[%emt 00:00:20]} Kxd6 {[%clk
00:01:50]} {[%emt 00:00:07]} 48. h4 {[%clk 00:04:09]} {[%emt 00:00:22]} 1-0

[Event "Klubbmästerskap 2025 Torsdagar"]
[Site "Linköping, Sweden"]
[Date "2025.01.23"]
[Round "2.2"]
[White "Gustafsson, Nils"]
[Black "Roginski, Hugo"]
[Result "1-0"]
[TimeControl "90 min + 30 sec/move"]
[WhiteElo "1860"]
[BlackElo "1884"]

1. e4 {[%clk 01:30:49]} {[%emt 00:00:10]} e5 {[%clk 01:30:58]} {[%emt
00:00:02]} 2. Nf3 {[%clk 01:31:04]} {[%emt 00:00:15]} Nc6 {[%clk 01:31:27]}
{[%emt 00:00:02]} 3. Bc4 {[%clk 01:31:04]} {[%emt 00:00:29]} Bc5 {[%clk
01:31:55]} {[%emt 00:00:02]} 4. b4 {[%clk 01:31:18]} {[%emt 00:00:16]} Bxb4
{[%clk 01:32:14]} {[%emt 00:00:11]} 5. c3 {[%clk 01:31:34]} {[%emt 00:00:13]}
Ba5 {[%clk 01:32:42]} {[%emt 00:00:01]} 6. d4 {[%clk 01:31:50]} {[%emt
00:00:14]} exd4 {[%clk 01:33:08]} {[%emt 00:00:04]} 7. O-O {[%clk 01:31:56]}
{[%emt 00:00:25]} Nge7 {[%clk 01:33:33]} {[%emt 00:00:05]} 8. Ng5 {[%clk
01:31:15]} {[%emt 00:01:11]} d5 {[%clk 01:31:11]} {[%emt 00:02:53]} 9. Nxf7
{[%clk 01:31:14]} {[%emt 00:00:31]} Kxf7 {[%clk 01:27:17]} {[%emt 00:04:23]} 10.
exd5 {[%clk 01:31:05]} {[%emt 00:00:38]} Ne5 {[%clk 01:24:29]} {[%emt
00:03:19]} 11. Bb3 {[%clk 01:31:11]} {[%emt 00:00:25]} Nf5 {[%clk 01:04:12]}
{[%emt 00:20:46]} 12. cxd4 {[%clk 01:13:20]} {[%emt 00:18:21]} Ng6 {[%clk
00:58:06]} {[%emt 00:06:35]} 13. d6+ {[%clk 01:12:32]} {[%emt 00:01:19]} Kf8
{[%clk 00:54:49]} {[%emt 00:03:46]} 14. Ba3 {[%clk 00:42:18]} {[%emt 00:30:44]}
Nxd6 {[%clk 00:49:04]} {[%emt 00:06:15]} 15. Nd2 {[%clk 00:38:18]} {[%emt
00:04:31]} Bxd2 {[%clk 00:32:45]} {[%emt 00:16:49]} 16. Qxd2 {[%clk 00:38:35]}
{[%emt 00:00:13]} Qf6 {[%clk 00:28:55]} {[%emt 00:04:20]} 17. Qc3 {[%clk
00:26:15]} {[%emt 00:12:50]} Qd8 {[%clk 00:14:06]} {[%emt 00:15:18]} 18. Rfe1
{[%clk 00:22:24]} {[%emt 00:04:21]} Ne7 {[%clk 00:11:12]} {[%emt 00:03:25]} 19.
Re5 {[%clk 00:17:28]} {[%emt 00:05:27]} Nc6 {[%clk 00:09:25]} {[%emt 00:02:17]}
20. Re3 {[%clk 00:09:48]} {[%emt 00:08:10]} Bg4 {[%clk 00:02:17]} {[%emt
00:07:38]} 21. Rae1 {[%clk 00:09:13]} {[%emt 00:01:05]} Rc8 {[%clk 00:01:27]}
{[%emt 00:01:19]} 22. h3 {[%clk 00:05:52]} {[%emt 00:03:52]} Bf5 {[%clk
00:01:21]} {[%emt 00:00:35]} 23. Rf3 {[%clk 00:03:15]} {[%emt 00:03:07]} Qg5
{[%clk 00:01:37]} {[%emt 00:00:14]} 24. g4 {[%clk 00:01:44]} {[%emt 00:02:01]}
h5 {[%clk 00:01:31]} {[%emt 00:00:36]} 25. Rxf5+ {[%clk 00:01:58]} {[%emt
00:00:16]} 1-0

[Event "Klubbmästerskap 2025 Torsdagar"]
[Site "Linköping, Sweden"]
[Date "2025.01.23"]
[Round "2.3"]
[White "Halvarsson, Peter"]
[Black "Löfgren, Vide"]
[Result "1-0"]
[TimeControl "90 min + 30 sec/move"]
[WhiteElo "1927"]
[BlackElo "1928"]

1. e4 {[%clk 01:30:54]} {[%emt 00:00:05]} c5 {[%clk 01:30:35]} {[%emt
00:00:26]} 2. a3 {[%clk 01:30:51]} {[%emt 00:00:33]} Nc6 {[%clk 01:29:54]}
{[%emt 00:01:11]} 3. b4 {[%clk 01:31:14]} {[%emt 00:00:06]} cxb4 {[%clk
01:30:14]} {[%emt 00:00:11]} 4. axb4 {[%clk 01:31:39]} {[%emt 00:00:05]} Nxb4
{[%clk 01:29:28]} {[%emt 00:01:16]} 5. c3 {[%clk 01:32:02]} {[%emt 00:00:06]}
Nc6 {[%clk 01:29:44]} {[%emt 00:00:14]} 6. d4 {[%clk 01:32:27]} {[%emt
00:00:05]} d5 {[%clk 01:28:51]} {[%emt 00:01:24]} 7. exd5 {[%clk 01:32:51]}
{[%emt 00:00:06]} Qxd5 {[%clk 01:29:07]} {[%emt 00:00:14]} 8. Na3 {[%clk
01:33:14]} {[%emt 00:00:06]} e5 {[%clk 01:23:40]} {[%emt 00:05:59]} 9. Nb5
{[%clk 01:29:31]} {[%emt 00:04:13]} Qd7 {[%clk 01:16:16]} {[%emt 00:07:54]} 10.
d5 {[%clk 01:28:23]} {[%emt 00:01:37]} Nd8 {[%clk 01:14:39]} {[%emt 00:02:08]}
11. d6 {[%clk 01:26:02]} {[%emt 00:02:51]} Ne6 {[%clk 01:13:46]} {[%emt
00:01:23]} 12. Nf3 {[%clk 01:24:41]} {[%emt 00:01:51]} f6 {[%clk 01:11:30]}
{[%emt 00:02:46]} 13. Bc4 {[%clk 01:19:49]} {[%emt 00:05:21]} a6 {[%clk
01:06:41]} {[%emt 00:05:19]} 14. O-O {[%clk 00:54:12]} {[%emt 00:26:06]} axb5
{[%clk 00:59:15]} {[%emt 00:07:57]} 15. Bxe6 {[%clk 00:54:28]} {[%emt
00:00:13]} Qxe6 {[%clk 00:59:31]} {[%emt 00:00:14]} 16. Rxa8 {[%clk 00:54:52]}
{[%emt 00:00:07]} Kd7 {[%clk 00:52:09]} {[%emt 00:07:52]} 17. Ba3 {[%clk
00:49:41]} {[%emt 00:05:41]} Nh6 {[%clk 00:47:36]} {[%emt 00:05:03]} 18. Qb1
{[%clk 00:46:10]} {[%emt 00:04:01]} Bxd6 {[%clk 00:22:29]} {[%emt 00:25:37]} 19.
Bxd6 {[%clk 00:33:10]} {[%emt 00:13:31]} Kxd6 {[%clk 00:22:14]} {[%emt
00:00:45]} 20. Qxb5 {[%clk 00:30:47]} {[%emt 00:02:52]} Kc7 {[%clk 00:16:18]}
{[%emt 00:06:26]} 21. Rd1 {[%clk 00:27:59]} {[%emt 00:03:18]} Nf7 {[%clk
00:11:45]} {[%emt 00:05:03]} 22. Ra4 {[%clk 00:06:06]} {[%emt 00:22:24]} Bd7
{[%clk 00:04:32]} {[%emt 00:07:43]} 23. Qa5+ {[%clk 00:06:20]} {[%emt
00:00:15]} b6 {[%clk 00:03:57]} {[%emt 00:01:05]} 24. Qa7+ {[%clk 00:06:21]}
{[%emt 00:00:29]} Kd8 {[%clk 00:00:48]} {[%emt 00:03:39]} 25. Ra6 {[%clk
00:06:03]} {[%emt 00:00:48]} Ke7 {[%clk 00:00:39]} {[%emt 00:00:38]} 26. Rxb6
{[%clk 00:06:22]} {[%emt 00:00:11]} Qf5 {[%clk 00:01:01]} {[%emt 00:00:07]} 27.
Qa3+ {[%clk 00:06:01]} {[%emt 00:00:52]} Ke8 {[%clk 00:00:52]} {[%emt
00:00:39]} 28. Rb7 {[%clk 00:05:22]} {[%emt 00:01:09]} e4 {[%clk 00:00:34]}
{[%emt 00:00:48]} 29. Rbxd7 {[%clk 00:04:18]} {[%emt 00:01:34]} Qxd7 {[%clk
00:00:54]} {[%emt 00:00:09]} 30. Rxd7 {[%clk 00:04:43]} {[%emt 00:00:06]} Kxd7
{[%clk 00:01:18]} {[%emt 00:00:06]} 31. Qa7+ {[%clk 00:05:00]} {[%emt
00:00:12]} Ke6 {[%clk 00:01:08]} {[%emt 00:00:41]} 32. Nd4+ {[%clk 00:05:25]}
{[%emt 00:00:05]} Kd6 {[%clk 00:01:30]} {[%emt 00:00:07]} 33. Qxf7 {[%clk
00:05:49]} {[%emt 00:00:07]} Ra8 {[%clk 00:01:59]} {[%emt 00:00:02]} 34. Qe6+
{[%clk 00:05:36]} {[%emt 00:00:42]} Kc7 {[%clk 00:02:24]} {[%emt 00:00:05]} 35.
Qc6+ {[%clk 00:05:52]} {[%emt 00:00:14]} Kb8 {[%clk 00:02:48]} {[%emt
00:00:06]} 36. h3 {[%clk 00:06:08]} {[%emt 00:00:14]} 1-0

[Event "Klubbmästerskap 2025 Torsdagar"]
[Site "Linköping, Sweden"]
[Date "2025.01.23"]
[Round "2.4"]
[White "Skytt, Klas"]
[Black "Andersson, Stefan 1975"]
[Result "0-1"]
[TimeControl "90 min + 30 sec/move"]
[WhiteElo "1764"]
[BlackElo "1937"]

1. d4 {[%clk 01:30:53]} {[%emt 00:00:07]} Nf6 {[%clk 01:30:51]} {[%emt
00:00:10]} 2. c4 {[%clk 01:31:02]} {[%emt 00:00:21]} g6 {[%clk 01:31:14]}
{[%emt 00:00:06]} 3. Nc3 {[%clk 01:31:21]} {[%emt 00:00:12]} Bg7 {[%clk
01:31:36]} {[%emt 00:00:08]} 4. Nf3 {[%clk 01:30:54]} {[%emt 00:00:57]} O-O
{[%clk 01:31:51]} {[%emt 00:00:16]} 5. e4 {[%clk 01:30:40]} {[%emt 00:00:43]}
d6 {[%clk 01:32:18]} {[%emt 00:00:03]} 6. Be2 {[%clk 01:29:23]} {[%emt
00:01:47]} Nc6 {[%clk 01:31:58]} {[%emt 00:00:50]} 7. h3 {[%clk 01:28:17]}
{[%emt 00:01:36]} e5 {[%clk 01:32:15]} {[%emt 00:00:13]} 8. d5 {[%clk
01:25:58]} {[%emt 00:02:49]} Ne7 {[%clk 01:31:22]} {[%emt 00:01:23]} 9. g4
{[%clk 01:24:25]} {[%emt 00:02:02]} a5 {[%clk 01:30:32]} {[%emt 00:01:21]} 10.
Qc2 {[%clk 01:24:07]} {[%emt 00:00:47]} Nd7 {[%clk 01:30:22]} {[%emt 00:00:41]}
11. Be3 {[%clk 01:21:46]} {[%emt 00:02:50]} Nc5 {[%clk 01:26:22]} {[%emt
00:04:30]} 12. Bxc5 {[%clk 01:20:09]} {[%emt 00:02:06]} dxc5 {[%clk 01:26:48]}
{[%emt 00:00:05]} 13. O-O-O {[%clk 01:20:11]} {[%emt 00:00:28]} Bd7 {[%clk
01:25:58]} {[%emt 00:01:21]} 14. Kb1 {[%clk 01:20:17]} {[%emt 00:00:24]} a4
{[%clk 01:25:49]} {[%emt 00:00:39]} 15. Rdg1 {[%clk 01:18:33]} {[%emt
00:02:13]} Nc8 {[%clk 01:24:39]} {[%emt 00:01:40]} 16. g5 {[%clk 01:15:36]}
{[%emt 00:03:27]} f5 {[%clk 01:24:03]} {[%emt 00:01:06]} 17. gxf6 {[%clk
01:14:16]} {[%emt 00:01:49]} Qxf6 {[%clk 01:23:48]} {[%emt 00:00:46]} 18. Qd2
{[%clk 01:10:57]} {[%emt 00:03:49]} Nd6 {[%clk 01:21:57]} {[%emt 00:02:22]} 19.
Rg3 {[%clk 01:08:12]} {[%emt 00:03:15]} Qf4 {[%clk 01:19:41]} {[%emt 00:02:46]}
20. Rh2 {[%clk 01:01:48]} {[%emt 00:06:54]} Nxe4 {[%clk 01:18:25]} {[%emt
00:01:47]} 21. Nxe4 {[%clk 01:00:52]} {[%emt 00:01:25]} Qxe4+ {[%clk 01:18:37]}
{[%emt 00:00:18]} 22. Bd3 {[%clk 01:00:53]} {[%emt 00:00:29]} Qf4 {[%clk
01:18:58]} {[%emt 00:00:09]} 23. Qe3 {[%clk 00:58:00]} {[%emt 00:03:23]} Bf5
{[%clk 00:54:13]} {[%emt 00:25:15]} 24. Bxf5 {[%clk 00:51:43]} {[%emt
00:06:46]} Qxf5+ {[%clk 00:52:32]} {[%emt 00:02:12]} 25. Kc1 {[%clk 00:50:37]}
{[%emt 00:01:35]} e4 {[%clk 00:49:14]} {[%emt 00:03:49]} 26. Ng5 {[%clk
00:46:41]} {[%emt 00:04:26]} Be5 {[%clk 00:46:20]} {[%emt 00:03:23]} 27. Qxe4
{[%clk 00:42:14]} {[%emt 00:04:57]} Bf4+ {[%clk 00:46:00]} {[%emt 00:00:51]} 28.
Kc2 {[%clk 00:39:12]} {[%emt 00:03:32]} Bxg3 {[%clk 00:45:23]} {[%emt
00:01:07]} 29. fxg3 {[%clk 00:37:30]} {[%emt 00:02:12]} Qxg5 {[%clk 00:45:34]}
{[%emt 00:00:19]} 30. Qe6+ {[%clk 00:36:25]} {[%emt 00:01:35]} Kg7 {[%clk
00:44:01]} {[%emt 00:02:03]} 31. Qe1 {[%clk 00:35:51]} {[%emt 00:01:03]} Qf5+
{[%clk 00:43:26]} {[%emt 00:01:05]} 32. Kc3 {[%clk 00:33:58]} {[%emt 00:02:24]}
Rae8 {[%clk 00:43:30]} {[%emt 00:00:26]} 33. Qd2 {[%clk 00:32:30]} {[%emt
00:01:57]} Qe4 {[%clk 00:42:46]} {[%emt 00:01:14]} 34. b3 {[%clk 00:32:01]}
{[%emt 00:01:00]} Rf3+ {[%clk 00:42:35]} {[%emt 00:00:41]} 35. Kb2 {[%clk
00:32:05]} {[%emt 00:00:25]} axb3 {[%clk 00:41:54]} {[%emt 00:01:12]} 36. axb3
{[%clk 00:32:25]} {[%emt 00:00:10]} Qd4+ {[%clk 00:42:15]} {[%emt 00:00:09]} 37.
Qxd4+ {[%clk 00:31:10]} {[%emt 00:01:45]} cxd4 {[%clk 00:42:42]} {[%emt
00:00:03]} 38. c5 {[%clk 00:29:39]} {[%emt 00:02:01]} d3 {[%clk 00:42:47]}
{[%emt 00:00:25]} 39. Rd2 {[%clk 00:29:35]} {[%emt 00:00:33]} Re2 {[%clk
00:43:07]} {[%emt 00:00:10]} 40. Kc3 {[%clk 00:29:41]} {[%emt 00:00:23]} Rxd2
{[%clk 00:43:18]} {[%emt 00:00:19]} 41. Kxd2 {[%clk 00:29:53]} {[%emt
00:00:19]} Rf5 {[%clk 00:43:34]} {[%emt 00:00:13]} 0-1

[Event "Klubbmästerskap 2025 Torsdagar"]
[Site "Linköping, Sweden"]
[Date "2025.01.23"]
[Round "2.5"]
[White "Stefanovic, Dragan 1958"]
[Black "Leijon, Noah"]
[Result "1-0"]
[TimeControl "90 min + 30 sec/move"]
[WhiteElo "1791"]
[BlackElo "1803"]

1. e4 {[%clk 01:30:55]} {[%emt 00:00:04]} c5 {[%clk 01:30:52]} {[%emt
00:00:09]} 2. Nc3 {[%clk 01:31:10]} {[%emt 00:00:15]} Nc6 {[%clk 01:30:39]}
{[%emt 00:00:43]} 3. Bb5 {[%clk 01:31:04]} {[%emt 00:00:36]} d6 {[%clk
01:28:41]} {[%emt 00:02:28]} 4. Bxc6+ {[%clk 01:30:34]} {[%emt 00:00:59]} bxc6
{[%clk 01:28:59]} {[%emt 00:00:13]} 5. f4 {[%clk 01:24:46]} {[%emt 00:06:17]}
Nf6 {[%clk 01:16:44]} {[%emt 00:12:45]} 6. Nf3 {[%clk 01:23:00]} {[%emt
00:02:16]} Bg4 {[%clk 01:10:52]} {[%emt 00:06:22]} 7. h3 {[%clk 01:23:09]}
{[%emt 00:00:21]} Bxf3 {[%clk 01:10:54]} {[%emt 00:00:29]} 8. Qxf3 {[%clk
01:23:29]} {[%emt 00:00:10]} Qc7 {[%clk 01:08:08]} {[%emt 00:03:17]} 9. b3
{[%clk 01:20:31]} {[%emt 00:03:28]} Nd7 {[%clk 01:00:13]} {[%emt 00:08:24]} 10.
Bb2 {[%clk 01:17:26]} {[%emt 00:03:35]} e5 {[%clk 00:59:26]} {[%emt 00:01:17]}
11. O-O {[%clk 01:14:52]} {[%emt 00:03:04]} exf4 {[%clk 00:54:52]} {[%emt
00:05:05]} 12. Qxf4 {[%clk 01:13:49]} {[%emt 00:01:32]} Ne5 {[%clk 00:54:41]}
{[%emt 00:00:41]} 13. Ne2 {[%clk 01:10:49]} {[%emt 00:03:29]} Rb8 {[%clk
00:41:34]} {[%emt 00:13:38]} 14. d3 {[%clk 00:43:38]} {[%emt 00:27:41]} Qe7
{[%clk 00:34:40]} {[%emt 00:07:25]} 15. Rab1 {[%clk 00:38:37]} {[%emt
00:05:29]} g6 {[%clk 00:32:57]} {[%emt 00:02:14]} 16. d4 {[%clk 00:37:17]}
{[%emt 00:01:50]} cxd4 {[%clk 00:27:43]} {[%emt 00:05:44]} 17. Nxd4 {[%clk
00:36:15]} {[%emt 00:01:32]} Rc8 {[%clk 00:27:03]} {[%emt 00:01:10]} 18. Rbd1
{[%clk 00:26:23]} {[%emt 00:10:19]} Bg7 {[%clk 00:24:23]} {[%emt 00:03:13]} 19.
Ba3 {[%clk 00:24:24]} {[%emt 00:02:30]} c5 {[%clk 00:16:31]} {[%emt 00:08:21]}
20. Nb5 {[%clk 00:18:17]} {[%emt 00:06:37]} Rd8 {[%clk 00:16:16]} {[%emt
00:00:46]} 21. Nc3 {[%clk 00:15:04]} {[%emt 00:03:43]} O-O {[%clk 00:11:58]}
{[%emt 00:04:47]} 22. Nd5 {[%clk 00:15:09]} {[%emt 00:00:25]} Qe6 {[%clk
00:11:31]} {[%emt 00:00:57]} 23. Nf6+ {[%clk 00:14:40]} {[%emt 00:00:58]} Qxf6
{[%clk 00:11:08]} {[%emt 00:00:54]} 24. Qxf6 {[%clk 00:14:50]} {[%emt
00:00:20]} Bxf6 {[%clk 00:11:31]} {[%emt 00:00:08]} 25. Rxf6 {[%clk 00:15:16]}
{[%emt 00:00:03]} c4 {[%clk 00:07:35]} {[%emt 00:04:27]} 26. Rfxd6 {[%clk
00:15:15]} {[%emt 00:00:31]} Rc8 {[%clk 00:06:41]} {[%emt 00:01:23]} 27. R6d5
{[%clk 00:14:59]} {[%emt 00:00:46]} Rfe8 {[%clk 00:06:46]} {[%emt 00:00:25]} 28.
Bd6 {[%clk 00:08:06]} {[%emt 00:07:20]} Nd7 {[%clk 00:04:33]} {[%emt 00:02:46]}
29. e5 {[%clk 00:06:57]} {[%emt 00:01:38]} Nb6 {[%clk 00:04:38]} {[%emt
00:00:25]} 30. Ra5 {[%clk 00:06:47]} {[%emt 00:00:40]} cxb3 {[%clk 00:04:16]}
{[%emt 00:00:52]} 31. cxb3 {[%clk 00:07:06]} {[%emt 00:00:11]} Rcd8 {[%clk
00:04:14]} {[%emt 00:00:32]} 32. Rxa7 {[%clk 00:07:04]} {[%emt 00:00:32]} Rxe5
{[%clk 00:03:55]} {[%emt 00:00:50]} 33. Bxe5 {[%clk 00:06:37]} {[%emt
00:00:56]} Rxd1+ {[%clk 00:04:15]} {[%emt 00:00:10]} 34. Kh2 {[%clk 00:06:54]}
{[%emt 00:00:13]} Rd5 {[%clk 00:03:20]} {[%emt 00:01:24]} 35. Rb7 {[%clk
00:05:47]} {[%emt 00:01:37]} Nd7 {[%clk 00:01:43]} {[%emt 00:02:09]} 36. Bc3
{[%clk 00:06:06]} {[%emt 00:00:08]} h5 {[%clk 00:01:54]} {[%emt 00:00:21]} 37.
Rc7 {[%clk 00:05:51]} {[%emt 00:00:45]} Kh7 {[%clk 00:01:08]} {[%emt 00:01:15]}
38. a4 {[%clk 00:06:09]} {[%emt 00:00:13]} Rd3 {[%clk 00:00:49]} {[%emt
00:00:50]} 39. a5 {[%clk 00:06:16]} {[%emt 00:00:22]} Rd1 {[%clk 00:00:34]}
{[%emt 00:00:44]} 40. a6 {[%clk 00:06:35]} {[%emt 00:00:11]} Nb6 {[%clk
00:00:43]} {[%emt 00:00:21]} 41. Rxf7+ {[%clk 00:06:12]} {[%emt 00:00:52]} Kg8
{[%clk 00:00:50]} {[%emt 00:00:23]} 42. Rg7+ {[%clk 00:06:06]} {[%emt
00:00:36]} Kf8 {[%clk 00:01:03]} {[%emt 00:00:18]} 43. Rb7 {[%clk 00:05:42]}
{[%emt 00:00:53]} Rd6 {[%clk 00:01:01]} {[%emt 00:00:32]} 44. a7 {[%emt
00:01:15]} 1-0

[Event "Klubbmästerskap 2025 Torsdagar"]
[Site "Linköping, Sweden"]
[Date "2025.01.23"]
[Round "2.6"]
[White "Snällfot, Magnus"]
[Black "Qwarfort, Fredrik"]
[Result "1/2-1/2"]
[TimeControl "90 min + 30 sec/move"]
[WhiteElo "1778"]
[BlackElo "1826"]

1. e4 {[%clk 01:30:57]} {[%emt 00:00:03]} d6 {[%clk 01:30:49]} {[%emt
00:00:13]} 2. d4 {[%clk 01:31:19]} {[%emt 00:00:07]} Nf6 {[%clk 01:31:07]}
{[%emt 00:00:13]} 3. Bd3 {[%clk 01:31:27]} {[%emt 00:00:22]} g6 {[%clk
01:31:08]} {[%emt 00:00:29]} 4. Nf3 {[%clk 01:31:10]} {[%emt 00:00:46]} Bg7
{[%clk 01:31:29]} {[%emt 00:00:08]} 5. O-O {[%clk 01:31:10]} {[%emt 00:00:31]}
O-O {[%clk 01:31:45]} {[%emt 00:00:14]} 6. c3 {[%clk 01:30:25]} {[%emt
00:01:15]} c5 {[%clk 01:28:00]} {[%emt 00:04:15]} 7. Be3 {[%clk 01:22:35]}
{[%emt 00:08:20]} Qc7 {[%clk 01:18:01]} {[%emt 00:10:29]} 8. h3 {[%clk
01:12:26]} {[%emt 00:10:39]} b6 {[%clk 01:17:43]} {[%emt 00:00:49]} 9. Nbd2
{[%clk 01:09:18]} {[%emt 00:03:38]} Nc6 {[%clk 01:16:15]} {[%emt 00:01:57]} 10.
Rc1 {[%clk 01:03:01]} {[%emt 00:06:47]} e5 {[%clk 01:15:15]} {[%emt 00:01:30]}
11. d5 {[%clk 00:57:33]} {[%emt 00:05:58]} Ne7 {[%clk 01:14:38]} {[%emt
00:01:07]} 12. c4 {[%clk 00:53:19]} {[%emt 00:04:44]} Nh5 {[%clk 01:08:05]}
{[%emt 00:07:02]} 13. Nh4 {[%clk 00:44:06]} {[%emt 00:09:42]} Nf4 {[%clk
01:07:56]} {[%emt 00:00:40]} 14. Bxf4 {[%clk 00:43:54]} {[%emt 00:00:41]} exf4
{[%clk 01:08:25]} {[%emt 00:00:02]} 15. b3 {[%clk 00:43:38]} {[%emt 00:00:47]}
f5 {[%clk 01:04:17]} {[%emt 00:04:38]} 16. exf5 {[%clk 00:39:14]} {[%emt
00:04:53]} Nxf5 {[%clk 01:04:34]} {[%emt 00:00:14]} 17. Nxf5 {[%clk 00:39:15]}
{[%emt 00:00:28]} Bxf5 {[%clk 01:04:57]} {[%emt 00:00:07]} 18. Bxf5 {[%clk
00:39:29]} {[%emt 00:00:15]} Rxf5 {[%clk 01:05:20]} {[%emt 00:00:07]} 19. Re1
{[%clk 00:33:14]} {[%emt 00:06:46]} Re5 {[%clk 00:41:10]} {[%emt 00:24:40]} 20.
Nf3 {[%clk 00:32:08]} {[%emt 00:01:36]} Rxe1+ {[%clk 00:27:25]} {[%emt
00:14:15]} 1/2-1/2